bitfinex/quotes_SOLUSD_20250421
["timestamp","ask_amount","ask_price","bid_price","bid_amount"]
[1745257794655,7.40711131,135.01,134.98,21.94921342]
[1745257794847,7.40711131,135.01,134.98,0.063]
[1745257795059,7.40711131,135.01,134.98,21.94921342]
[1745257795867,7.40711131,135.01,134.98,0.063]
[1745257796170,29.29332473,135.01,134.98,0.063]
[1745257796350,21.88621342,135.0,134.98,0.063]
[1745257796852,47.8104716,135.01,134.98,0.063]
[1745257797542,41.88621342,135.0,134.98,0.063]
[1745257797740,21.88621342,134.99,134.98,0.063]
[1745257799166,29.29416956,134.99,134.98,0.063]
[1745257800356,7.40795614,134.99,134.98,0.063]
[1745257801865,29.29416956,134.99,134.98,0.063]
[1745257802383,20.0,134.97,134.95,0.063]
[1745257802548,21.88621342,134.96,134.95,0.063]
[1745257803456,29.29581626,134.96,134.95,0.063]
[1745257805378,46.0,134.94,134.93,0.063]
[1745257805592,67.88621342,134.94,134.93,0.063]
[1745257805773,67.88621342,134.94,134.92,0.063]
[1745257805980,21.88621342,134.93,134.92,0.063]
[1745257806276,67.6116338,134.96,134.92,0.063]
[1745257806277,45.93360995,134.96,134.92,0.063]
[1745257806506,27.40960284,134.96,134.92,0.063]
[1745257806806,27.40960284,134.96,134.92,21.94921342]
[1745257806971,27.40960284,134.96,134.92,0.063]
[1745257807169,49.29581626,134.96,134.92,0.063]
[1745257807605,27.40960284,134.96,134.93,21.88621342]
[1745257807904,49.29581626,134.96,134.92,21.94921342]
[1745257808990,49.29581626,134.96,134.92,0.063]
[1745257811505,7.40960284,134.96,134.92,21.94921342]
[1745257811796,46.0,134.98,134.95,21.88621342]
[1745257811973,41.88621342,135.0,134.95,21.88621342]
[1745257812177,20.0,135.0,134.97,21.88621342]
[1745257812479,27.40758598,135.0,134.96,21.88621342]
[1745257813098,21.88621342,135.01,134.96,21.88621342]
[1745257813317,7.40701117,135.01,134.98,21.88621342]
[1745257814894,7.40701117,135.01,134.97,21.88621342]
[1745257815209,29.29322459,135.01,134.97,21.88621342]
[1745257815601,29.29322459,135.01,134.96,23.45421342]
[1745257815977,29.29322459,135.01,134.96,1.568]
[1745257816174,21.88621342,134.99,134.94,39.50621342]
[1745257816479,41.88621342,135.0,134.95,21.88621342]
[1745257816680,7.40701117,135.01,134.97,21.88621342]
[1745257816895,7.40651639,135.02,134.98,21.88621342]
[1745257817110,7.40651639,135.02,134.99,21.88621342]
[1745257818385,7.40651639,135.02,134.98,21.88621342]
[1745257819294,7.40651639,135.02,134.99,21.88621342]
[1745257819903,7.40651639,135.02,134.98,7.40832943]
[1745257819904,7.40651639,135.02,134.98,21.88621342]
[1745257820304,7.40651639,135.02,134.97,18.79181043]
[1745257820504,7.40651639,135.02,134.98,21.88621342]
[1745257821408,29.29272981,135.02,134.96,18.79181043]
[1745257821721,29.29272981,135.02,134.97,21.88621342]
[1745257822612,49.29272981,135.02,134.97,21.88621342]
[1745257822790,21.88621342,135.01,134.96,21.88621342]
[1745257823508,67.80850525,135.02,134.97,21.88621342]
[1745257824913,49.29272981,135.02,134.97,21.88621342]
[1745257825124,29.29272981,135.02,134.97,29.29525861]
[1745257825915,29.29272981,135.02,134.97,21.88621342]
[1745257826617,29.29272981,135.02,134.97,29.29516839]
[1745257827189,29.29222008,135.03,134.98,21.88621342]
[1745257827389,7.40600666,135.03,134.99,21.88621342]
[1745257827608,0.03,135.05,135.01,21.88621342]
[1745257827823,0.03,135.05,135.03,21.88621342]
[1745257828189,0.03,135.05,135.02,21.88621342]
[1745257829331,7.4347856,135.05,135.01,21.88621342]
[1745257829528,21.88621342,135.04,135.0,27.6079]
[1745257829897,21.88621342,135.03,134.98,155.88630799]
[1745257830128,21.88621342,135.03,134.98,103.68621341]
[1745257830430,21.88621342,135.02,134.98,81.79999999]
[1745257830792,21.88621342,135.01,134.98,81.79999999]
[1745257830992,21.88621342,135.02,134.97,30.90307318]
[1745257831302,21.88621342,135.02,134.92,0.063]
[1745257831303,20.0,134.98,134.92,0.063]
[1745257831522,21.88621342,134.93,134.92,0.063]
[1745257831691,21.88621342,134.94,134.92,0.063]
[1745257831891,41.88621342,134.96,134.92,0.063]
[1745257832194,20.0,134.96,134.92,0.063]
[1745257832389,41.88621342,134.96,134.92,0.063]
[1745257833203,21.88621342,134.95,134.92,0.063]
[1745257833405,41.88621342,134.96,134.92,0.063]
[1745257833607,7.41022995,134.95,134.92,0.063]
[1745257834015,20.0,134.98,134.94,21.88621342]
[1745257834219,7.40816447,134.99,134.96,21.88621342]
[1745257834611,7.40816447,134.99,134.95,21.88621342]
[1745257834918,7.40816447,134.99,134.96,21.88621342]
[1745257835431,21.88621342,134.98,134.93,6.1183]
[1745257835598,21.88621342,134.97,134.92,39.52921342]
[1745257835800,21.88621342,134.97,134.92,17.643]
[1745257836118,21.88621342,134.97,134.92,39.52921342]
[1745257836626,29.29581626,134.96,134.92,17.643]
[1745257837125,29.29581626,134.96,134.92,0.063]
[1745257837326,7.40960284,134.96,134.92,21.94921342]
[1745257838029,7.40960284,134.96,134.93,21.88621342]
[1745257838236,7.40850496,134.98,134.95,21.88621342]
[1745257838397,7.4074074,135.0,134.97,21.88621342]
[1745257838598,7.40685875,135.01,134.98,21.88621342]
[1745257839408,7.40685875,135.01,134.98,35.08876426]
[1745257839924,7.40631017,135.02,134.99,35.08876426]
[1745257840315,7.4060034,135.03,134.99,35.08876426]
[1745257840696,35.08876426,135.02,134.97,35.08876426]
[1745257841409,35.08876426,135.01,134.96,142.88876425]
[1745257841723,35.08876426,135.02,134.97,35.08876426]
[1745257841910,7.40685875,135.01,134.97,35.08876426]
[1745257842323,42.49562301,135.01,134.97,35.08876426]
[1745257842513,7.40685875,135.01,134.97,35.08876426]
[1745257842827,35.08876426,135.04,134.99,35.08876426]
[1745257843129,35.08876426,135.04,135.0,35.08876426]
[1745257843325,7.40521327,135.04,135.0,35.08876426]
[1745257843916,25.94660854,135.05,135.01,35.08876426]
[1745257844122,7.43466493,135.05,135.01,35.08876426]
[1745257844332,0.03,135.05,135.03,35.08876426]
[1745257844741,0.03,135.05,135.04,35.08876426]
[1745257845408,0.03,135.05,135.04,53.88057469]
[1745257845911,0.03,135.05,135.04,61.28578796]
[1745257849430,0.03,135.05,135.04,195.71455221]
[1745257850139,0.03,135.05,135.04,160.62578795]
[1745257852419,0.03,135.05,135.04,195.71455221]
[1745257853040,0.03,135.07,135.04,195.71455221]
[1745257853041,0.03,135.07,135.06,44.79181043]
[1745257853219,0.03,135.07,135.06,135.68057468]
[1745257853421,0.03,135.08,135.07,25.45491043]
[1745257853624,0.03,135.08,135.07,143.94577468]
[1745257853823,0.03,135.11,135.1,44.79181043]
[1745257854006,0.03,135.11,135.1,186.62249918]
[1745257854412,0.03,135.13,135.11,18.79181043]
[1745257854608,0.03,135.13,135.12,79.88057469]
[1745257856239,0.03,135.13,135.12,87.28140358]
[1745257856448,0.03,135.13,135.1,99.33999999]
[1745257856614,0.03,135.13,135.11,35.08876426]
[1745257857043,0.03,135.13,135.1,153.22057468]
[1745257857340,0.03,135.13,135.1,99.33999999]
[1745257857546,0.03,135.13,135.11,35.08876426]
[1745257858538,0.03,135.13,135.12,35.08876426]
[1745257858726,0.03,135.13,135.12,53.88057469]
[1745257860145,0.03,135.13,135.11,35.08876426]
[1745257860344,0.03,135.13,135.1,24.94186101]
[1745257860345,0.03,135.13,135.1,17.54]
[1745257860550,0.03,135.13,135.09,142.88876425]
[1745257860843,0.03,135.13,135.09,107.79999999]
[1745257861149,0.03,135.13,135.09,142.88876425]
[1745257862118,7.43028121,135.13,135.09,142.88876425]
[1745257863050,42.51904547,135.13,135.06,24.92379786]
[1745257863251,7.43028121,135.13,135.09,35.08876426]
[1745257863429,7.43028121,135.13,135.08,0.14216157]
[1745257863629,7.43028121,135.13,135.1,35.08876426]
[1745257864147,7.43028121,135.13,135.09,35.08876426]
[1745257864322,0.03,135.13,135.1,35.08876426]
[1745257864523,0.03,135.13,135.11,35.08876426]
[1745257865222,0.03,135.13,135.1,35.08876426]
[1745257865422,0.03,135.13,135.09,35.08876426]
[1745257865622,35.08876426,135.11,135.06,106.72392851]
[1745257865831,35.08876426,135.1,135.06,106.72392851]
[1745257866037,35.08876426,135.1,135.06,99.31999999]
[1745257866222,42.49058022,135.11,135.06,106.72410872]
[1745257866557,42.49058022,135.11,135.06,141.81287298]
[1745257866915,35.08876426,135.1,135.06,17.52]
[1745257867347,35.08876426,135.1,135.05,61.08876426]
[1745257868547,7.40247242,135.09,135.05,61.08876426]
[1745257868953,7.40247242,135.09,135.06,35.08876426]
[1745257869323,42.49123668,135.09,135.05,26.0]
[1745257869645,42.49123668,135.09,135.02,134.40876425]
[1745257869646,35.08876426,135.07,135.02,134.40876425]
[1745257870249,35.08876426,135.05,135.02,17.52]
[1745257870448,35.08876426,135.05,135.0,253.96]
[1745257870449,35.08876426,135.04,135.0,253.96]
[1745257870647,42.49452594,135.03,134.99,26.0]
[1745257870947,7.40576168,135.03,134.99,35.08876426]
[1745257871843,7.40576168,135.03,134.98,99.31999999]
[1745257871844,35.08876426,135.02,134.98,99.31999999]
[1745257872038,35.08876426,135.01,134.98,81.79999999]
[1745257872243,35.08876426,135.01,134.95,61.08876426]
[1745257872244,35.08876426,135.0,134.95,61.08876426]
[1745257872421,55.08876426,135.01,134.96,35.08876426]
[1745257872625,7.4074074,135.0,134.96,35.08876426]
[1745257873539,42.49617166,135.0,134.95,35.08876426]
[1745257874268,42.49617166,135.0,134.94,106.79344664]
[1745257874445,42.49617166,135.0,134.95,35.08876426]
[1745257875859,7.4074074,135.0,134.96,35.08876426]
[1745257877540,55.08876426,135.01,134.96,35.08876426]
[1745257877541,7.4069549,135.01,134.96,42.49824723]
[1745257877753,7.4069549,135.01,134.97,35.08876426]
[1745257878141,7.40649895,135.02,134.99,35.08876426]
[1745257878346,7.40649895,135.02,134.98,35.08876426]
[1745257880168,42.49526321,135.02,134.97,42.49770545]
[1745257881361,7.40649895,135.02,134.98,35.08876426]
[1745257881877,7.40539612,135.04,135.0,35.08876426]
[1745257882042,7.40539612,135.04,135.01,35.08876426]
[1745257882237,7.40539612,135.04,135.0,35.08876426]
[1745257883252,7.40539612,135.04,135.0,21.92502701]
[1745257883558,7.40539612,135.04,134.98,7.40805815]
[1745257883559,29.33042313,135.04,134.97,7.40882246]
[1745257883759,29.33042313,135.04,134.94,0.063]
[1745257883760,46.0,134.96,134.94,0.063]
[1745257884142,21.92502701,134.95,134.94,0.063]
[1745257884342,46.0,134.96,134.94,0.063]
[1745257884542,20.0,134.96,134.94,0.063]
[1745257884745,21.92502701,134.95,134.94,0.063]
[1745257885071,29.33517891,134.95,134.94,0.063]
[1745257886872,7.4101519,134.95,134.94,0.063]
[1745257887167,29.33517891,134.95,134.94,0.063]
[1745257887371,42.54333632,134.95,134.94,0.063]
[1745257888250,20.0,134.94,134.92,0.063]
[1745257888454,35.13318442,134.93,134.92,0.063]
[1745257888649,20.0,134.92,134.91,0.063]
[1745257888868,55.13318442,134.92,134.91,0.063]
[1745257889174,27.41179958,134.92,134.91,0.063]
[1745257889345,42.544984,134.92,134.91,0.063]
[1745257889540,62.544984,134.92,134.91,0.063]
[1745257889742,46.0,134.9,134.89,0.063]
[1745257889964,81.13318442,134.9,134.89,0.063]
[1745257890749,46.0,134.9,134.89,0.063]
[1745257891151,88.54608286,134.9,134.89,0.063]
[1745257891561,7.41236443,134.91,134.89,0.063]
[1745257891766,42.54443469,134.93,134.89,0.063]
[1745257891943,26.515,134.97,134.91,35.13318442]
[1745257892143,35.13318442,134.96,134.91,35.13318442]
[1745257892446,35.13318442,134.94,134.89,53.98799485]
[1745257892689,35.13318442,134.95,134.9,35.13318442]
[1745257893172,42.54443469,134.93,134.89,0.063]
[1745257893748,35.13318442,134.9,134.89,0.063]
[1745257893968,35.13318442,134.91,134.89,0.063]
[1745257894173,35.13318442,134.92,134.89,0.063]
[1745257895256,7.41234897,134.91,134.89,0.063]
[1745257895775,35.13318442,134.91,134.89,0.063]
[1745257895975,7.41197234,134.92,134.89,0.063]
[1745257896353,42.54515676,134.92,134.89,0.063]
[1745257896885,35.13318442,134.9,134.89,0.063]
[1745257897056,27.41197234,134.92,134.89,0.063]
[1745257897263,62.54515676,134.92,134.89,0.063]
[1745257898583,27.41197234,134.92,134.89,0.063]
[1745257900077,7.41197234,134.92,134.89,0.063]
[1745257900473,35.13318442,134.93,134.89,35.19618442]
[1745257900474,7.41136491,134.93,134.89,35.19618442]
[1745257901055,7.4101519,134.95,134.92,35.13318442]
[1745257901279,7.4101519,134.95,134.91,35.13318442]
[1745257902884,35.13318442,134.92,134.89,0.063]
[1745257903390,35.13318442,134.91,134.89,0.063]
[1745257903763,35.13318442,134.92,134.89,0.063]
[1745257904080,55.13318442,134.94,134.89,35.19618442]
[1745257904383,20.0,134.94,134.9,35.13318442]
[1745257905288,62.54413522,134.94,134.89,42.60959164]
[1745257906390,62.54413522,134.94,134.89,0.063]
[1745257906559,35.13318442,134.92,134.89,0.063]
[1745257906760,27.4109508,134.94,134.89,0.063]
[1745257906990,35.13318442,134.93,134.89,0.063]
[1745257908491,7.40960284,134.96,134.92,35.13318442]
[1745257908671,42.54278726,134.96,134.92,35.13318442]
[1745257908871,7.40960284,134.96,134.92,35.13318442]
[1745257909257,35.13318442,134.95,134.89,18.85481043]
[1745257909587,7.40960284,134.96,134.92,35.13318442]
[1745257909979,42.54278726,134.96,134.91,35.13318442]
[1745257910289,7.40960284,134.96,134.91,35.13318442]
[1745257910483,7.40960284,134.96,134.92,35.13318442]
[1745257912492,7.40960284,134.96,134.93,35.13318442]
[1745257912664,7.40919263,134.97,134.94,35.13318442]
[1745257913087,42.54237705,134.97,134.92,35.13318442]
[1745257913577,7.40919263,134.97,134.93,35.13318442]
[1745257914696,42.54237705,134.97,134.9,20.35201043]
[1745257914865,35.13318442,134.96,134.9,55.48519485]
[1745257915064,45.93182728,134.97,134.92,35.13318442]
[1745257915274,62.54237705,134.97,134.92,35.13318442]
[1745257915691,62.54237705,134.97,134.91,18.79181043]
[1745257915895,62.54237705,134.97,134.92,35.13318442]
[1745257916603,27.40919263,134.97,134.93,35.13318442]
[1745257917380,27.40919263,134.97,134.93,21.94779979]
[1745257917576,67.87962707,134.97,134.91,21.94779979]
[1745257917981,21.94779979,134.96,134.9,21.94779979]
[1745257918177,45.93182728,134.97,134.93,21.94779979]
[1745257918478,7.43875369,134.98,134.96,21.94779979]
[1745257918692,0.03,134.98,134.97,21.94779979]
[1745257918999,0.03,134.98,134.97,40.73961022]
[1745257919700,0.03,134.98,134.96,21.94779979]
[1745257919874,0.03,134.98,134.95,21.94779979]
[1745257920875,0.03,134.98,134.94,107.79999999]
[1745257921076,0.03,134.98,134.94,21.94779979]
[1745257921609,0.03,134.98,134.95,21.94779979]
[1745257921808,0.03,134.98,134.94,21.94779979]
[1745257922173,0.03,134.98,134.93,26.44294623]
[1745257922405,0.03,134.98,134.92,40.73961022]
[1745257922406,21.94779979,134.97,134.92,40.73961022]
[1745257922906,21.97779979,134.98,134.93,21.94779979]
[1745257923207,21.97779979,134.98,134.91,40.59744865]
[1745257923208,21.94779979,134.96,134.91,40.59744865]
[1745257923410,20.0,134.96,134.9,35.12666806]
[1745257923593,55.12666806,134.96,134.91,35.12666806]
[1745257923917,35.12666806,134.95,134.9,35.12666806]
[1745257924089,35.12666806,134.93,134.89,0.063]
[1745257924289,7.41179958,134.92,134.89,0.063]
[1745257925099,7.41179958,134.92,134.89,35.18966806]
[1745257925489,7.41148198,134.93,134.89,35.18966806]
[1745257926589,42.53815004,134.93,134.89,0.063]
[1745257928980,35.12666806,134.92,134.89,0.063]
[1745257930906,7.4120121,134.92,134.89,0.063]
[1745257932206,35.12666806,134.91,134.89,0.063]
[1745257932518,62.53868016,134.92,134.89,0.063]
[1745257935216,7.41155232,134.93,134.9,35.12666806]
[1745257935389,7.41155232,134.93,134.89,35.18966806]
[1745257936228,7.41155232,134.93,134.9,35.12666806]
[1745257936716,7.40986101,134.96,134.92,35.12666806]
[1745257936917,7.40986101,134.96,134.9,18.79181043]
[1745257937219,42.53652907,134.96,134.91,35.12666806]
[1745257937424,35.12666806,134.95,134.9,53.91847849]
[1745257937589,7.40986101,134.96,134.91,35.12666806]
[1745257937788,42.53652907,134.96,134.91,35.12666806]
[1745257938088,7.40986101,134.96,134.91,35.12666806]
[1745257938608,42.53652907,134.96,134.91,35.12666806]
[1745257939898,0.03,134.98,134.94,35.12666806]
[1745257940104,7.43850496,134.98,134.91,0.14216157]
[1745257940294,7.43850496,134.98,134.94,35.12666806]
[1745257941393,0.03,134.98,134.97,35.12666806]
[1745257941597,0.03,134.98,134.96,35.12666806]
[1745257941817,35.15666806,134.98,134.92,1.6282]
[1745257942013,35.15666806,134.98,134.93,35.12666806]
[1745257942313,0.03,134.98,134.92,1.6282]
[1745257942499,0.03,134.98,134.94,35.12666806]
[1745257942898,0.03,134.98,134.96,35.12666806]
[1745257943408,0.03,134.98,134.95,35.12666806]
[1745257943717,0.03,134.98,134.96,21.93867094]
[1745257944102,0.03,134.98,134.97,21.93867094]
[1745257944422,0.03,134.98,134.97,40.73048137]
[1745257944917,0.03,134.98,134.97,21.93867094]
[1745257945125,0.03,134.98,134.95,18.79181043]
[1745257945336,0.03,134.98,134.94,99.25999999]
[1745257945496,21.96867094,134.98,134.94,17.46]
[1745257945697,0.03,134.98,134.96,21.93867094]
[1745257945891,0.03,134.98,134.97,21.93867094]
[1745257947330,0.03,134.98,134.97,54.55353523]
[1745257949413,0.03,134.98,134.97,56.05963523]
[1745257951223,0.03,134.98,134.97,27.70696429]
[1745257951423,0.03,134.98,134.97,49.64563523]
[1745257951624,0.03,134.98,134.97,48.13953523]
[1745257952136,0.03,134.98,134.94,18.9661]
[1745257952446,21.93867094,134.97,134.94,26.0]
[1745257952653,21.93867094,134.97,134.92,18.64964886]
[1745257952952,21.93867094,134.96,134.91,29.3509149]
[1745257953249,21.93867094,134.97,134.92,21.93867094]
[1745257953629,7.40960284,134.96,134.92,21.93867094]
[1745257954156,29.34827378,134.96,134.91,29.3509149]
[1745257954647,21.93867094,134.97,134.92,21.93867094]
[1745257955450,21.93867094,134.95,134.9,40.73048137]
[1745257955651,21.93867094,134.96,134.91,21.93867094]
[1745257957437,7.4101519,134.95,134.91,21.93867094]
[1745257964450,7.4101519,134.95,134.92,21.93867094]
[1745257965265,7.40960284,134.96,134.9,18.64964886]
[1745257965471,7.40960284,134.96,134.91,21.93867094]
[1745257965472,29.34827378,134.96,134.91,21.93867094]
[1745257968359,29.34827378,134.96,134.9,26.06252798]
[1745257968360,7.40960284,134.96,134.92,21.93867094]
[1745257968945,7.40960284,134.96,134.94,21.93867094]
[1745257970063,25.95976736,134.98,134.94,21.93867094]
[1745257971569,7.43850496,134.98,134.94,21.93867094]
[1745257971741,7.43850496,134.98,134.92,0.14216157]
[1745257971742,0.03,134.98,134.97,21.93867094]
[1745257971942,0.03,134.98,134.96,21.93867094]
[1745257973565,0.03,134.98,134.95,21.93867094]
[1745257975864,0.03,134.98,134.96,21.93867094]
[1745257976237,0.03,134.98,134.95,21.93867094]
[1745257977573,21.96867094,134.98,134.92,107.79999999]
[1745257977755,21.96867094,134.98,134.93,40.73048137]
[1745257978151,0.03,134.98,134.94,21.93867094]
[1745257979457,29.3771759,134.98,134.93,40.73048137]
[1745257980267,7.43850496,134.98,134.94,21.93867094]
[1745257981464,7.43850496,134.98,134.94,14.04372382]
[1745257982369,14.04372382,134.97,134.92,95.84372381]
[1745257982781,14.04372382,134.96,134.91,32.69337268]
[1745257983277,14.04372382,134.97,134.92,14.04372382]
[1745257983653,21.45332666,134.96,134.91,14.04372382]
[1745257984152,14.04372382,134.95,134.9,32.83553425]
[1745257984569,14.04372382,134.95,134.9,18.79181043]
[1745257984762,39.97733377,134.96,134.91,14.04372382]
[1745257988075,14.04372382,134.94,134.89,139.34672381]
[1745257988279,14.04372382,134.92,134.89,0.063]
[1745257989269,20.0,134.93,134.89,0.063]
[1745257989481,41.96474795,134.93,134.89,0.063]
[1745257989856,7.41179958,134.92,134.89,0.063]
[1745257990389,29.37654753,134.92,134.89,0.063]
[1745257991284,7.41179958,134.92,134.89,0.063]
[1745257991793,7.41179958,134.92,134.89,22.02774795]
[1745257991995,7.41146965,134.93,134.91,21.96474795]
[1745257993079,7.41146965,134.93,134.89,0.063]
[1745257993278,7.41146965,134.93,134.89,22.02774795]
[1745257993888,7.41146965,134.93,134.9,21.96474795]
[1745257994403,7.41070105,134.94,134.9,21.96474795]
[1745257996202,21.96474795,134.93,134.89,0.063]
[1745257996385,29.37654753,134.92,134.89,0.063]
[1745257996573,7.41179958,134.92,134.89,0.063]
[1745257996774,7.41179958,134.92,134.89,22.02774795]
[1745257997183,7.41179958,134.92,134.89,0.063]
[1745257997686,29.37654753,134.92,134.89,0.063]
[1745257998002,7.41179958,134.92,134.89,0.063]
[1745257998910,29.37654753,134.92,134.89,0.063]
[1745257999102,26.1356,134.89,134.88,1e-08]
[1745257999305,70.0650959,134.89,134.87,1e-08]
[1745257999479,44.07165747,134.88,134.87,1e-08]
[1745257999679,20.0,134.85,134.84,0.063]
[1745257999985,41.96474795,134.85,134.84,0.063]
[1745258000893,49.38039496,134.85,134.82,0.03]
[1745258001103,21.96474795,134.84,134.82,0.03]
[1745258001307,105.50620952,134.84,134.83,1e-08]
[1745258001675,105.36404795,134.84,134.83,1e-08]
[1745258001877,83.3993,134.84,134.83,1e-08]
[1745258002180,105.36404795,134.84,134.83,1e-08]
[1745258003107,112.78024492,134.84,134.83,1e-08]
[1745258003417,112.92240649,134.84,134.83,1e-08]
[1745258007422,138.92240649,134.84,134.83,1e-08]
[1745258007599,67.23315838,134.83,134.82,1e-08]
[1745258007799,46.0,134.81,134.78,0.063]
[1745258008000,108.72130633,134.81,134.8,1e-08]
[1745258008511,64.79181043,134.79,134.78,1e-08]
[1745258008728,94.17550637,134.79,134.78,1e-08]
[1745258008886,0.14216157,134.78,134.77,1e-08]
[1745258009093,39.50690952,134.78,134.77,1e-08]
[1745258009511,41.12520952,134.78,134.77,1e-08]
[1745258010505,48.54470796,134.78,134.77,1e-08]
[1745258010708,46.0,134.75,134.69,0.03]
[1745258011092,21.96474795,134.73,134.69,0.03]
[1745258011410,46.0,134.75,134.72,21.96474795]
[1745258011411,20.0,134.75,134.72,21.96474795]
[1745258011590,41.96474795,134.75,134.7,21.96474795]
[1745258011797,20.0,134.75,134.69,44.82181043]
[1745258012023,21.96474795,134.74,134.69,66.78655838]
[1745258012227,21.96474795,134.74,134.69,52.24622899]
[1745258012397,20.0,134.75,134.71,21.96474795]
[1745258012727,49.38528191,134.77,134.72,21.96474795]
[1745258012917,27.42053396,134.77,134.71,21.96474795]
[1745258013107,21.96474795,134.76,134.71,21.96474795]
[1745258013303,20.0,134.79,134.72,21.96474795]
[1745258013497,7.41957718,134.78,134.75,21.96474795]
[1745258013919,7.4191634,134.79,134.75,21.96474795]
[1745258014828,7.41839762,134.8,134.77,21.96474795]
[1745258014994,7.41839762,134.8,134.76,21.96474795]
[1745258015198,29.38314557,134.8,134.75,21.96474795]
[1745258016017,29.38314557,134.8,134.74,8.97496757]
[1745258016410,29.38314557,134.8,134.75,21.96474795]
[1745258016795,21.96474795,134.79,134.74,23.51824795]
[1745258016998,21.96474795,134.79,134.74,1.5535]
[1745258017214,41.96474795,134.79,134.74,23.51824795]
[1745258017827,21.96474795,134.79,134.73,18.79181043]
[1745258018020,29.38314557,134.8,134.75,21.96474795]
[1745258019422,21.96474795,134.79,134.73,26.21395728]
[1745258019728,21.96474795,134.78,134.73,21.96474795]
[1745258020823,7.42004897,134.77,134.73,21.96474795]
[1745258022602,7.42004897,134.77,134.74,21.96474795]
[1745258022803,7.42004897,134.77,134.72,115.22279489]
[1745258022804,7.41967591,134.78,134.75,21.96474795]
[1745258023004,29.38442386,134.78,134.74,21.96474795]
[1745258023607,7.41967591,134.78,134.74,21.96474795]
[1745258024530,27.41909552,134.79,134.75,21.96474795]
[1745258024833,7.41729713,134.82,134.78,21.96474795]
[1745258025200,29.38204508,134.82,134.77,21.96474795]
[1745258025406,7.41729713,134.82,134.78,21.96474795]
[1745258025630,7.41619697,134.84,134.79,21.96474795]
[1745258025831,29.38094492,134.84,134.77,7.8608]
[1745258026006,29.38094492,134.84,134.79,21.96474795]
[1745258026928,29.38094492,134.84,134.77,15.28070909]
[1745258027127,29.38094492,134.84,134.79,21.96474795]
[1745258027730,7.41619697,134.84,134.79,21.96474795]
[1745258028032,29.38094492,134.84,134.79,21.96474795]
[1745258028238,7.41619697,134.84,134.79,21.96474795]
[1745258028428,21.96474795,134.83,134.78,21.96474795]
[1745258028730,21.96474795,134.82,134.76,18.79181043]
[1745258028910,21.96474795,134.81,134.76,18.64964886]
[1745258029257,21.96474795,134.81,134.76,48.03494858]
[1745258029439,21.96474795,134.82,134.77,21.96474795]
[1745258029748,21.96474795,134.81,134.77,21.96474795]
[1745258030463,29.38307175,134.81,134.77,21.96474795]
[1745258032052,29.38204508,134.82,134.77,21.96474795]
[1745258032558,25.96053997,134.82,134.76,18.64964886]
[1745258032719,21.96474795,134.8,134.75,26.14216157]
[1745258032922,21.96474795,134.8,134.75,48.10690952]
[1745258033224,21.96474795,134.8,134.75,47.96474795]
[1745258033620,20.0,134.84,134.79,21.96474795]
[1745258033833,20.0,134.84,134.76,44.79181043]
[1745258033834,7.41696375,134.83,134.8,21.96474795]
[1745258034046,29.38094492,134.84,134.79,21.96474795]
[1745258034446,41.96474795,134.83,134.77,21.96474795]
[1745258034839,21.96474795,134.82,134.77,21.96474795]
[1745258035744,41.96474795,134.83,134.78,21.96474795]
[1745258036551,29.38230171,134.82,134.76,33.42037025]
[1745258036764,29.38230171,134.82,134.77,21.96474795]
[1745258037271,7.41755376,134.82,134.77,21.96474795]
[1745258037448,29.38230171,134.82,134.77,21.96474795]
[1745258038273,29.38230171,134.82,134.78,21.96474795]
[1745258038444,7.41755376,134.82,134.78,21.96474795]
[1745258038639,40.50524038,134.84,134.79,21.96474795]
[1745258038845,7.41700059,134.83,134.79,21.96474795]
[1745258041470,29.38174854,134.83,134.78,29.38406257]
[1745258042368,7.41645344,134.84,134.8,21.96474795]
[1745258042680,18.60182152,134.86,134.83,21.96474795]
[1745258042681,7.47824665,134.86,134.83,21.96474795]
[1745258043174,0.063,134.86,134.84,21.96474795]
[1745258043381,29.44291804,134.86,134.8,89.41019999]
[1745258043549,29.44291804,134.86,134.81,40.75655838]
[1745258043750,29.44291804,134.86,134.81,21.96474795]
[1745258045074,29.44291804,134.86,134.8,89.41019999]
[1745258045384,21.96474795,134.82,134.77,55.57494795]
[1745258045873,20.0,134.84,134.77,55.57494795]
[1745258046078,21.96474795,134.83,134.78,21.96474795]
[1745258046379,7.41693324,134.83,134.79,21.96474795]
[1745258046578,7.41693324,134.83,134.8,21.96474795]